Cogmind - Beta 11 @@@ ROGUE MODE // 2022.03.21 @ 11:51:07 Player: Dytto Result: Destroyed by S-10 Pest with Light Assault Rifle Performance ------------- Evolutions (0) 0 Regions Visited (1) 200 Robots Destroyed (2) 10 Value Destroyed (44) 44 Prototype IDs (0) 0 Alien Tech Used (0) 0 Bonus (0) 0 TOTAL SCORE: 254 Bonus ------- None Cogmind --------- Core Integrity 0/250 Matter 300/300 Energy 100/100 System Corruption 0% Temperature Cool (0) Movement Core (50) Location -10/Materials Parts ------- > --- POWER (1) -------- (None) > --- PROPULSION (2) --- (None) > --- UTILITY (2) ------ (None) > --- WEAPON (2) ------- (None) > --- INVENTORY (5) ---- Light Ion Engine Small Laser Grenade Launcher Peak State ------------ > --- POWER ------------ Light Ion Engine > --- PROPULSION ------- Wheel Wheel > --- UTILITY ---------- (None) > --- WEAPON ----------- Medium Laser Medium Laser > --- INVENTORY -------- (None) [Rating: 5] Favorites ----------- Power Light Ion Engine Engine Light Ion Engine Propulsion Wheel Wheel Wheel Utility None Weapon Medium Laser Energy Gun Medium Laser Build | -11 -10 ------- Run | Scr Mat Slots Evolved . | . . Power . | . . Propulsion . | . . Utility . | . . Weapon . | . . Parts Attached 5 | 5 . Power 1 | 1 . Engine 1 | 1 . Core . | . . Reactor . | . . Propulsion 2 | 2 . Treads . | . . Leg . | . . Wheel 2 | 2 . Hover . | . . Flight . | . . Utility . | . . Device . | . . Storage . | . . Processor . | . . Hackware . | . . Protection . | . . Artifact . | . . Weapon 2 | 2 . Energy Gun 2 | 2 . Energy Cannon . | . . Ballistic Gun . | . . Ballistic Cannon . | . . Launcher . | . . Special Weapon . | . . Impact Weapon . | . . Slashing Weapon . | . . Piercing Weapon . | . . Special Melee Weapon . | . . Unidentified Prototypes . | . . Parts Lost 5 | . 5 Power 1 | . 1 Propulsion 2 | . 2 Utility . | . . Weapon 2 | . 2 Highest Loss Streak 5 | . 5 To Critical Strikes . | . . Average Slot Usage (%) 65 | . 65 Engine 13 | . 13 Wheel 24 | . 24 Energy Gun 26 | . 26 Naked Turns 19 | . 19 Heaviest Build 7 | 7 7 Greatest Support 20 | 20 20 Greatest Overweight (x) 2 | . 2 Average Overweight (x) . | . . Largest Inventory Capacity 5 | 5 5 Average Capacity 5 | 5 5 Most Carried 3 | 2 3 Average Carried 2 | . 2 Final Capacity 5 | 5 5 Final Carried 3 | 2 3 Class Distribution -------------------- 100% | Mutant Dominant Class ---------------- Mutant | -10/Materials Resources | -11 -10 ----------- Run | Scr Mat Matter Collected 250 | 145 105 Remotely . | . . Salvage Created 64 | . 64 Parts 1 | . 1 Haulers Intercepted . | . . Recyclers Shooed . | . . Parts Field Recycled . | . . Retrieved Matter . | . . Parts Self-Destructed . | . . Prevented . | . . Kills | -11 -10 ------- Run | Scr Mat Combat Hostiles Destroyed 2 | . 2 Guns 2 | . 2 Classes Destroyed 2 | . 2 Swarmer 1 | . 1 Grunt 1 | . 1 Best Kill Streak 1 | . 1 Combat Bots Only 1 | . 1 Max Kills in Single Turn 1 | . 1 Gunslinging . | . . Exploded . | . . Melee . | . . Uniques/NPCs Destroyed . | . . Combat | -11 -10 -------- Run | Scr Mat Damage Taken 546 | . 546 Core 255 | . 255 Absorbed by Shields . | . . Core Remaining (%) 100 | 100 . Volleys Fired 10 | . 10 Largest 2 | . 2 Hottest 100 | . 100 Shots Fired 20 | . 20 Gun 20 | . 20 Cannon . | . . Launcher . | . . Special . | . . Kinetic . | . . Thermal 20 | . 20 Explosive . | . . Electromagnetic . | . . Robot Hit Streak 6 | . 6 Robot Miss Streak 3 | . 3 Penetration Max . | . . Secondary Targets . | . . Shots Hit Robots 14 | . 14 Core Hits 3 | . 3 Critical Kills . | . . Critical Parts Destroyed . | . . Critical Strikes . | . . Melee Attacks . | . . Impact . | . . Slashing . | . . Piercing . | . . Sneak Attacks . | . . Combat Hostiles . | . . Follow-up Attacks . | . . Damage Inflicted 178 | . 178 Guns 178 | . 178 Cannons . | . . Explosions . | . . Melee . | . . Ramming . | . . Kinetic . | . . Thermal 178 | . 178 Explosive . | . . Electromagnetic . | . . Impact . | . . Slashing . | . . Piercing . | . . Highest Corruption . | . . Average Corruption . | . . Corruption Purged . | . . Corruption Blocked . | . . Overload Shots . | . . Overflow Damage . | . . Projectiles . | . . Explosions . | . . Melee . | . . Knockbacks . | . . Impact . | . . Kinetic . | . . Secondary . | . . Self-Inflicted Damage . | . . Shots . | . . Rammed . | . . Targets Rammed . | . . Kicked . | . . Crushed . | . . Highest Temperature 205 | . 205 Average Temperature 92 | . 92 Received Heat Transfer 114 | . 114 Siege Activations . | . . Robots Corrupted . | . . Combat Hostiles . | . . Parts Fried . | . . Impact Corruptions . | . . Robots Melted . | . . Combat Hostiles . | . . Parts Melted 1 | . 1 Heat Transferred 518 | . 518 Parts Sabotaged . | . . Parts Stolen . | . . Parts Stripped . | . . Power Chain Reactions . | . . Missiles Intercepted . | . . Alert | -11 -10 ------- Run | Scr Mat Peak Influence 70 | . 70 Initial . | . . Average 9 | . 10 Maximum Alert Level . | . . Low Security (%) 100 | 100 100 Level 1 . | . . Level 2 . | . . Level 3 . | . . Level 4 . | . . Level 5 . | . . High Security . | . . Max Security . | . . Squads Dispatched 2 | . 2 Investigation 1 | . 1 Extermination . | . . Reinforcement 1 | . 1 Assault . | . . Garrison . | . . Intercept . | . . Searches Triggered . | . . Construction Impeded . | . . Haulers Reinforced . | . . Active Scanning Responses . | . . Cargo Convoy Interrupts . | . . Stealth | -11 -10 --------- Run | Scr Mat Distress Signals . | . . Communications Jammed . | . . Distress Signals . | . . Times Spotted 8 | . 8 Peak Tracking Total 5 | . 5 Tactical Retreats 1 | . 1 Traps | -11 -10 ------- Run | Scr Mat Traps Triggered . | . . Indirectly . | . . Trap Hack Attempts . | . . Triggered . | . . Disarmed . | . . Reprogrammed . | . . Reused . | . . Traps Extracted . | . . Installed . | . . Triggered . | . . Machines | -11 -10 ---------- Run | Scr Mat Machines Disabled . | . . Max in Single Turn . | . . Machines Sabotaged . | . . Garrisons Compromised . | . . Overloaded Fab Kills . | . . Hacking | -11 -10 --------- Run | Scr Mat Machines Accessed 2 | . 2 Terminals 2 | . 2 Fabricators . | . . Repair Stations . | . . Recycling Units . | . . Scanalyzers . | . . Garrison Access . | . . Total Hacks 6 | . 6 Successful 5 | . 5 Failed 1 | . 1 Catastrophic . | . . Database Lockouts . | . . Manual . | . . Terminals 6 | . 6 Fabricators . | . . Repair Stations . | . . Recycling Units . | . . Scanalyzers . | . . Garrison Access . | . . Terminal Hacks 5 | . 5 Record 4 | . 4 Dispatch Records 1 | . 1 Fabricator Hacks . | . . Repair Station Hacks . | . . Recycling Unit Hacks . | . . Scanalyzer . | . . Garrison Access Hacks . | . . Unauthorized Hacks . | . . Terminals . | . . Fabricators . | . . Repair Stations . | . . Recycling Units . | . . Scanalyzers . | . . Garrison Access . | . . Data Cores Recovered . | . . Used . | . . Hacking Detections 2 | . 2 Full Trace Events 1 | . 1 Feedback Events . | . . Feedback Blocked . | . . Robot Schematics Acquired . | . . Robots Built . | . . Authchips . | . . Time . | . . Total Robot Build Rating . | . . Part Schematics Acquired . | . . Parts Built . | . . Authchips . | . . Time . | . . Total Part Build Rating . | . . Parts Repaired . | . . Time . | . . Parts Recycled . | . . Recycled Matter . | . . Retrieved Matter . | . . Retrieved Components . | . . Parts Scanalyzed . | . . Part Schematics Acquired . | . . Parts Damaged . | . . Bothacking | -11 -10 ------------ Run | Scr Mat Used RIF Installer . | . . Robots Hacked . | . . Non-combat . | . . Combat . | . . Robot Hacks Applied . | . . Relay Couplers Released . | . . Fabnet Peak Effective % . | . . Robots Rewired . | . . Allies Hacked . | . . Hacks Repelled . | . . Allies | -11 -10 -------- Run | Scr Mat Total Allies . | . . Largest Group . | . . Highest-Rated Group . | . . Highest-Rated Ally . | . . Total Orders . | . . Ally Attacks . | . . Total Damage . | . . Kills . | . . Allies Corrupted . | . . Allies Melted . | . . Intel | -11 -10 ------- Run | Scr Mat Robot Analysis Total . | . . Derelict Logs Recovered . | . . Drone Launches . | . . Drone Recoveries . | . . Exploration | -11 -10 ------------- Run | Scr Mat Turns Passed 492 | 58 434 Spaces Moved 352 | 62 290 Core 21 | 2 19 Treads . | . . Legs . | . . Wheels 331 | 60 271 Hover . | . . Flight . | . . Fastest Speed 50 | 50 50 Average Speed 79 | 79 79 Slowest Speed 150 | 80 150 Overloaded Moves . | . . Propulsion Burnouts . | . . Robots Hopped . | . . Cave-ins Triggered . | . . Exploration Rate (%) 16 | 3 29 Regions Visited 1 Branch Regions . Pre-discovered Areas . | . . Known Exits Taken . | . . Unknown Exits Taken 1 | 1 . Scrap Searched . | . . Spaces Dug . | . . Terrain Destroyed . | . . Melee . | . . Projectile . | . . AOE . | . . Terrain Rammed . | . . Walls Destroyed . | . . Machines Disabled . | . . Actions | -11 -10 --------- Run | Scr Mat Total 542 | 68 474 Wait 173 | . 173 Move 351 | 61 290 Hop . | . . Pick Up 3 | 2 1 Fast Attach 5 | 5 . Attach . | . . Detach . | . . Swap . | . . Drop . | . . Fire 10 | . 10 Melee . | . . Ram . | . . Kick . | . . Crush . | . . Escape Stasis . | . . Rewire . | . . Trap . | . . Miscellaneous . | . . Route ------- -11/Scrapyard -10/Materials (discovered 1 exit: [*Mat]) History --------- Turn | Location | Event 13 | -11/Scrapyard | Discovered new exit (range 16) 59 | -11/Scrapyard | Entered Materials 105 | -10/Materials | Discovered new exit (range 16) 307 | -10/Materials | Build established: Mutant 477 | -10/Materials | Core integrity fell below 50% 489 | -10/Materials | Core integrity fell below 20% 493 | -10/Materials | Destroyed by S-10 Pest with Light Assault Rifle Last Messages --------------- infiltrated, the entrance and inner tunnel may be permanently sealed to prevent passage and contain the threat. 00106_ ALERT: Suspicious activity at Terminal M007. Dispatching Investigation squad. 00147_ Acquired 105 matter. 00172_ K-01 Serf collects debris. 00352_ K-01 Serf cleans the Integration Channel. 00396_ Aluminum Leg melted. 00396_ G-34 Mercenary destroyed. 00406_ U-05 Engineer builds a Door. 00424_ K-01 Serf cleans the Terminal. 00429_ O-16 Technician: "IFF HANDSHAKE FAILED. SECURING TERMINAL." 00430_ O-16 Technician uses terminal to summon reinforcements. 00430_ ALERT: Hostiles spotted, dispatching reinforcements to Terminal M006. 00430_ O-16 Technician locks terminal. 00437_ Wheel destroyed. 00465_ S-10 Pest destroyed. 00470_ Lgt. Ion Engine destroyed. 00472_ Med. Laser destroyed. Map ----- +----------------------------------------------------+ | ????????# ## " # """"" #???? | | ????????#= " """"" ## """ # """"" #???? | | ????????# """"""""" ## """ # """"" #? | | ????????# """ """ ## """ # """ #? | | ????????# ## "" # #? | | ????###########+####+## """ ##+#####+####? | | ????# # "" ## ### #?? | | ????# ######## # "" # #?# | | ????# #??????# + " # T #?# | | ????# #??????###### %# / #?# | | ????# #?########### ######## ### #?# | | ????# #?# # #??????# #?## ##?# | | ????# #?# "T" # #??#####+#### #??# | | ????# #?# """ %+ #??# ## #??# | | ????# #?# # #??# ## #??# | | ????# #?###########s g##?# """ ## ##?# | | ??###+####???????# gs #?# """ # #?# | | ??# #???????# #?# """ # #?# | | ??# #???????# #?# / #?# | | ??# """ #???????# #?# """ # ### | | ??# """ #???????# #?# """ # | | ??# """ #???????## ##?#[ """ ## #####+# | | ??# #????????# #??# ## #??? | | ??########????????# #??# ## #??? " | | ??????????????????# #??########## < #???] " | | ??????????????????# @ #???????????# #???] " | | ??????????????????#####???????????#####??] | | ????????????????????????????????????????? " | | ????????????????????????????????????????? " | | ????????????????????????????????????????? | | ????????????????????????????????????????##### | | ????????????????????????????????????????????? | | ????????????????????????????????????????????? | | ????????????????????????????????????????????? | | ????????????????????????????????????????????? | | | | | | | | | | | | | | | | | | | | | | | | | | | | | | | +----------------------------------------------------+ Best States ------------- Heat Dissipation 25 Energy Generation 10 Energy Capacity 125 Matter Stores 300 Matter Capacity 300 Sight Range 16 Terrain Scan Density 10 Evasion (%) 48 Item Schematics ----------------- None Robot Schematics ------------------ None Fabricated ------------ Nothing Alien Tech Used ----------------- None Achievements -------------- None Challenges ------------ None Game ------ Seed NullExperimentalBooster Manual? 0 Play Time 00:05:10 Cumulative 12.9 hours Start 2022.03.21 @ 11:45:17 End 2022.03.21 @ 11:51:07 Sessions 1 Manual Loads 0 Difficulty Rogue Special Mode None Game No. 45 Rogue 9 Adventurer 36 Explorer 0 Win Type - Total 0 Types 0/0/0/0/0/0/0/0/0 Lore% 14 Gallery% 17 Achievement% 13 Wizard Run 0 Options --------- ASCII 0 Keyboard 1 Movement Numpad Keybinds 0 Fullscreen 2 Font 18/X11Bold Map View 76x50 Tactical HUD 1 Map Filters NONE Filters NONE Steam 1 RUN: e20db739-81af-4491-bf51-f958799984d6